[Event "Early-Titled-Tuesday-Blitz-March-26-2024"]
[Site "Chess.com"]
[Date "2024.03.26"]
[Round "7"]
[White "daika91"]
[Black "Ticoluis"]
[Result "0-1"]
[WhiteElo "2693"]
[BlackElo "2520"]
[TimeControl "180+1"]
[EndTime "9:15:26 PDT"]
[Termination "Ticoluis won on time"]

1. d4 {[%clk 0:03:00.9]} 1... Nf6 {[%clk 0:02:59.1]} 2. c4 {[%clk 0:03:00.4]}
2... g6 {[%clk 0:02:59.5]} 3. Nc3 {[%clk 0:03:00.5]} 3... Bg7 {[%clk 0:02:59.9]}
4. e4 {[%clk 0:03:00.7]} 4... d6 {[%clk 0:03:00.4]} 5. h3 {[%clk 0:03:00.3]}
5... O-O {[%clk 0:02:59.7]} 6. Be3 {[%clk 0:03:00.1]} 6... c5 {[%clk 0:02:59.4]}
7. Nf3 {[%clk 0:02:58.7]} 7... cxd4 {[%clk 0:02:58]} 8. Nxd4 {[%clk 0:02:59.6]}
8... Nc6 {[%clk 0:02:55.7]} 9. Be2 {[%clk 0:02:59.8]} 9... Bd7 {[%clk
0:02:54.9]} 10. Nb3 {[%clk 0:02:56.4]} 10... a6 {[%clk 0:02:52.2]} 11. O-O
{[%clk 0:02:53.4]} 11... Rc8 {[%clk 0:02:52.1]} 12. Rc1 {[%clk 0:02:52.7]} 12...
Be6 {[%clk 0:02:52.1]} 13. Nd2 {[%clk 0:02:46.4]} 13... Nd7 {[%clk 0:02:37.8]}
14. b3 {[%clk 0:02:39.8]} 14... Qa5 {[%clk 0:02:20.9]} 15. Ndb1 {[%clk
0:02:08.7]} 15... Rfd8 {[%clk 0:02:12.4]} 16. a4 {[%clk 0:02:03.3]} 16... Nc5
{[%clk 0:02:07.6]} 17. Nd5 {[%clk 0:01:52.7]} 17... Bxd5 {[%clk 0:02:02.8]} 18.
exd5 {[%clk 0:01:46.8]} 18... Nb4 {[%clk 0:01:58.6]} 19. Nc3 {[%clk 0:01:42.8]}
19... Bxc3 {[%clk 0:01:48.7]} 20. Rxc3 {[%clk 0:01:42.5]} 20... Nxd5 {[%clk
0:01:48]} 21. Rc1 {[%clk 0:01:31.4]} 21... Nxe3 {[%clk 0:01:46.2]} 22. fxe3
{[%clk 0:01:32.3]} 22... Qb6 {[%clk 0:01:44.6]} 23. Rb1 {[%clk 0:01:24.4]} 23...
a5 {[%clk 0:01:40.3]} 24. Kh1 {[%clk 0:01:22.2]} 24... Ne4 {[%clk 0:01:33.8]}
25. Qe1 {[%clk 0:01:19.6]} 25... Qxe3 {[%clk 0:01:27.4]} 26. Rf3 {[%clk
0:01:09]} 26... Qd2 {[%clk 0:01:24]} 27. Qf1 {[%clk 0:01:08.1]} 27... f5 {[%clk
0:01:20]} 28. Rd1 {[%clk 0:00:56.7]} 28... Qg5 {[%clk 0:01:16.8]} 29. Qe1 {[%clk
0:00:54.7]} 29... e6 {[%clk 0:01:12.3]} 30. Bd3 {[%clk 0:00:50.4]} 30... d5
{[%clk 0:01:11.5]} 31. cxd5 {[%clk 0:00:47.2]} 31... exd5 {[%clk 0:01:11.6]} 32.
Qxa5 {[%clk 0:00:46.8]} 32... Qe7 {[%clk 0:01:04.8]} 33. Bf1 {[%clk 0:00:44.3]}
33... Rc2 {[%clk 0:01:00]} 34. Rxd5 {[%clk 0:00:41.9]} 34... Rdc8 {[%clk
0:00:51.1]} 35. Bc4 {[%clk 0:00:31.5]} 35... Kg7 {[%clk 0:00:47.3]} 36. Qb6
{[%clk 0:00:20.5]} 36... Rc1+ {[%clk 0:00:44.3]} 37. Bf1 {[%clk 0:00:19.4]}
37... Ng3+ {[%clk 0:00:34.3]} 38. Rxg3 {[%clk 0:00:18.6]} 38... Rxf1+ {[%clk
0:00:32.8]} 39. Kh2 {[%clk 0:00:18.9]} 39... Rcc1 {[%clk 0:00:30.7]} 40. Qd4+
{[%clk 0:00:18.3]} 40... Kh6 {[%clk 0:00:26.7]} 41. Re3 {[%clk 0:00:05.1]} 41...
Rh1+ {[%clk 0:00:25.3]} 42. Kg3 {[%clk 0:00:04.8]} 42... Qg5+ {[%clk 0:00:23.8]}
43. Kf3 {[%clk 0:00:02.2]} 43... Rhf1+ {[%clk 0:00:23.2]} 44. Ke2 {[%clk
0:00:02.2]} 44... Rce1+ {[%clk 0:00:22.9]} 45. Kd2 {[%clk 0:00:02.4]} 45... Rd1+
{[%clk 0:00:22.8]} 46. Kc2 {[%clk 0:00:02.4]} 46... Rxd4 {[%clk 0:00:22.7]} 0-1

[Event "Early-Titled-Tuesday-Blitz-March-26-2024"]
[Site "Chess.com"]
[Date "2024.03.26"]
[Round "7"]
[White "deribas12345"]
[Black "ljuks68"]
[Result "1-0"]
[WhiteElo "2620"]
[BlackElo "2439"]
[TimeControl "180+1"]
[EndTime "9:15:27 PDT"]
[Termination "deribas12345 won by resignation"]

1. d4 {[%clk 0:03:00.9]} 1... d5 {[%clk 0:02:55.1]} 2. c4 {[%clk 0:03:00.5]}
2... c6 {[%clk 0:02:54.7]} 3. Nf3 {[%clk 0:02:56.7]} 3... Nf6 {[%clk 0:02:55.2]}
4. Nc3 {[%clk 0:02:56.1]} 4... dxc4 {[%clk 0:02:55.4]} 5. e4 {[%clk 0:02:56.1]}
5... b5 {[%clk 0:02:55.5]} 6. e5 {[%clk 0:02:55.7]} 6... Nd5 {[%clk 0:02:55.7]}
7. Ne4 {[%clk 0:02:56.2]} 7... Bf5 {[%clk 0:02:54.7]} 8. Ng3 {[%clk 0:02:56.2]}
8... Bg6 {[%clk 0:02:54.8]} 9. h4 {[%clk 0:02:55.6]} 9... Nb4 {[%clk 0:02:50]}
10. Be2 {[%clk 0:02:25.5]} 10... Nc2+ {[%clk 0:02:38.1]} 11. Kf1 {[%clk
0:02:25.6]} 11... Nxa1 {[%clk 0:02:35.8]} 12. h5 {[%clk 0:02:20.8]} 12... Bc2
{[%clk 0:02:24.9]} 13. Qd2 {[%clk 0:02:20.5]} 13... h6 {[%clk 0:02:21.7]} 14. e6
{[%clk 0:02:16.9]} 14... f6 {[%clk 0:02:08.8]} 15. Nh4 {[%clk 0:02:08.1]} 15...
Qd5 {[%clk 0:02:04]} 16. Bg4 {[%clk 0:01:55.2]} 16... Bd3+ {[%clk 0:01:50.1]}
17. Kg1 {[%clk 0:01:54.1]} 17... Qxd4 {[%clk 0:01:50.3]} 18. Bf5 {[%clk
0:01:36]} 18... Qd5 {[%clk 0:01:50.2]} 19. Qa5 {[%clk 0:01:29.5]} 19... Bxf5
{[%clk 0:01:38.9]} 20. Ngxf5 {[%clk 0:01:29.2]} 20... Qxe6 {[%clk 0:01:38.9]}
21. Kh2 {[%clk 0:01:23.9]} 21... Nc2 {[%clk 0:01:34.7]} 22. Rd1 {[%clk
0:01:22.6]} 22... Nd7 {[%clk 0:01:34.4]} 23. Bf4 {[%clk 0:01:21.6]} 23... Ne5
{[%clk 0:01:13.4]} 24. f3 {[%clk 0:01:14.5]} 24... Nd3 {[%clk 0:01:10.2]} 25.
Bg3 {[%clk 0:01:14.4]} 25... Ne3 {[%clk 0:00:28.2]} 26. Nxe3 {[%clk 0:01:07.7]}
26... Qxe3 {[%clk 0:00:28.2]} 27. Ng6 {[%clk 0:01:08.1]} 27... Rg8 {[%clk
0:00:26.2]} 28. Rd2 {[%clk 0:00:52.6]} 28... Qb6 {[%clk 0:00:19.7]} 29. Qc3
{[%clk 0:00:49.8]} 29... Qc5 {[%clk 0:00:19.6]} 30. Nh4 {[%clk 0:00:38.8]} 30...
Qxh5 {[%clk 0:00:18.9]} 31. Rxd3 {[%clk 0:00:37.9]} 31... cxd3 {[%clk
0:00:18.4]} 32. Qxc6+ {[%clk 0:00:38.1]} 32... Kf7 {[%clk 0:00:18.9]} 33. Qxa8
{[%clk 0:00:37.8]} 33... Qc5 {[%clk 0:00:14.9]} 34. Qd8 {[%clk 0:00:35]} 34...
Qc4 {[%clk 0:00:14]} 35. Nf5 {[%clk 0:00:34.3]} 35... e6 {[%clk 0:00:12.9]} 36.
Ne3 {[%clk 0:00:21.1]} 36... Qc5 {[%clk 0:00:12.6]} 37. Qd7+ {[%clk 0:00:20]}
37... Be7 {[%clk 0:00:12.6]} 38. Qxd3 {[%clk 0:00:15.8]} 38... Rd8 {[%clk
0:00:12.7]} 39. Qe2 {[%clk 0:00:16.1]} 39... Bd6 {[%clk 0:00:12.3]} 40. f4
{[%clk 0:00:14.2]} 40... Bc7 {[%clk 0:00:10.8]} 41. Qh5+ {[%clk 0:00:13.4]}
41... Kg8 {[%clk 0:00:10.4]} 42. Qxc5 {[%clk 0:00:13.5]} 42... Bb6 {[%clk
0:00:09.5]} 43. Qc6 {[%clk 0:00:13.9]} 1-0

[Event "Early-Titled-Tuesday-Blitz-March-26-2024"]
[Site "Chess.com"]
[Date "2024.03.26"]
[Round "7"]
[White "Levanzovsky"]
[Black "LikeWater"]
[Result "0-1"]
[WhiteElo "2426"]
[BlackElo "2716"]
[TimeControl "180+1"]
[EndTime "9:15:28 PDT"]
[Termination "LikeWater won on time"]

1. Nf3 {[%clk 0:03:00.6]} 1... Nf6 {[%clk 0:02:59]} 2. g3 {[%clk 0:02:41.8]}
2... g6 {[%clk 0:02:58.7]} 3. Bg2 {[%clk 0:02:41.3]} 3... Bg7 {[%clk 0:02:59.6]}
4. O-O {[%clk 0:02:41]} 4... O-O {[%clk 0:03:00.5]} 5. d3 {[%clk 0:02:40.5]}
5... d6 {[%clk 0:02:56.7]} 6. Nc3 {[%clk 0:02:40.2]} 6... c5 {[%clk 0:02:54.8]}
7. Nh4 {[%clk 0:02:38.9]} 7... Nc6 {[%clk 0:02:55.6]} 8. e4 {[%clk 0:02:34.9]}
8... Rb8 {[%clk 0:02:54.8]} 9. a4 {[%clk 0:02:34.6]} 9... a6 {[%clk 0:02:52.6]}
10. f4 {[%clk 0:02:29.1]} 10... Nd4 {[%clk 0:02:47.6]} 11. f5 {[%clk 0:02:20.3]}
11... b5 {[%clk 0:02:45.1]} 12. axb5 {[%clk 0:02:21.2]} 12... axb5 {[%clk
0:02:46]} 13. Ne2 {[%clk 0:02:04.4]} 13... b4 {[%clk 0:02:34.2]} 14. Nxd4 {[%clk
0:02:01.8]} 14... cxd4 {[%clk 0:02:35.1]} 15. b3 {[%clk 0:01:56.2]} 15... Bb7
{[%clk 0:02:25.7]} 16. g4 {[%clk 0:01:55.3]} 16... Nd7 {[%clk 0:02:22.6]} 17.
Nf3 {[%clk 0:01:48]} 17... Rc8 {[%clk 0:02:17.8]} 18. h4 {[%clk 0:01:39.5]}
18... Qc7 {[%clk 0:02:14.7]} 19. Ra2 {[%clk 0:01:28.3]} 19... Ra8 {[%clk
0:02:13.8]} 20. Rxa8 {[%clk 0:01:25.2]} 20... Rxa8 {[%clk 0:02:14.7]} 21. Bb2
{[%clk 0:01:18.1]} 21... Qc5 {[%clk 0:02:00.2]} 22. h5 {[%clk 0:00:49]} 22...
Bxe4 {[%clk 0:01:45.2]} 23. dxe4 {[%clk 0:00:41.9]} 23... d3+ {[%clk 0:01:45.1]}
24. Kh1 {[%clk 0:00:41.5]} 24... Bxb2 {[%clk 0:01:33.9]} 25. Qxd3 {[%clk
0:00:31.9]} 25... Ne5 {[%clk 0:01:04.6]} 26. Nxe5 {[%clk 0:00:31]} 26... Bxe5
{[%clk 0:01:05.5]} 27. fxg6 {[%clk 0:00:27.7]} 27... hxg6 {[%clk 0:01:06.4]} 28.
Qf3 {[%clk 0:00:26]} 28... f6 {[%clk 0:00:51.2]} 29. hxg6 {[%clk 0:00:25.7]}
29... Kg7 {[%clk 0:00:51.4]} 30. Bh3 {[%clk 0:00:12]} 30... Rh8 {[%clk 0:00:49]}
31. g5 {[%clk 0:00:09.4]} 31... Kxg6 {[%clk 0:00:20.6]} 32. gxf6 {[%clk
0:00:04.8]} 32... Bxf6 {[%clk 0:00:21.5]} 33. Rg1+ {[%clk 0:00:02.9]} 33... Kf7
{[%clk 0:00:21.3]} 34. Qg4 {[%clk 0:00:03.3]} 34... Qxc2 {[%clk 0:00:15]} 35.
Qe6+ {[%clk 0:00:02.9]} 35... Kf8 {[%clk 0:00:15.7]} 36. Rg8+ {[%clk 0:00:01]}
36... Rxg8 {[%clk 0:00:15.6]} 0-1

[Event "Early-Titled-Tuesday-Blitz-March-26-2024"]
[Site "Chess.com"]
[Date "2024.03.26"]
[Round "7"]
[White "lagunanivaria"]
[Black "Chxss_Khxsbu"]
[Result "1-0"]
[WhiteElo "2456"]
[BlackElo "1790"]
[TimeControl "180+1"]
[EndTime "9:15:29 PDT"]
[Termination "lagunanivaria won by resignation"]

1. c3 {[%clk 0:02:53.8]} 1... e5 {[%clk 0:02:58.8]} 2. d4 {[%clk 0:02:54.7]}
2... exd4 {[%clk 0:02:55.4]} 3. cxd4 {[%clk 0:02:55.6]} 3... d5 {[%clk
0:02:55.4]} 4. Bf4 {[%clk 0:02:55.2]} 4... Nf6 {[%clk 0:02:55.6]} 5. Nc3 {[%clk
0:02:54.2]} 5... Bd6 {[%clk 0:02:55.6]} 6. Bxd6 {[%clk 0:02:53.2]} 6... Qxd6
{[%clk 0:02:55]} 7. e3 {[%clk 0:02:53.6]} 7... c6 {[%clk 0:02:55]} 8. Bd3 {[%clk
0:02:54.2]} 8... O-O {[%clk 0:02:54.6]} 9. h3 {[%clk 0:02:53.7]} 9... Nbd7
{[%clk 0:02:48.8]} 10. Nf3 {[%clk 0:02:53.6]} 10... Re8 {[%clk 0:02:48.5]} 11.
Qc2 {[%clk 0:02:52.1]} 11... Nf8 {[%clk 0:02:42.9]} 12. O-O {[%clk 0:02:47.9]}
12... Ng6 {[%clk 0:02:43.2]} 13. Rab1 {[%clk 0:02:47]} 13... a5 {[%clk 0:02:41]}
14. a3 {[%clk 0:02:45.8]} 14... b6 {[%clk 0:02:41]} 15. b4 {[%clk 0:02:43.6]}
15... Ba6 {[%clk 0:02:37.5]} 16. Bxa6 {[%clk 0:02:35.4]} 16... Rxa6 {[%clk
0:02:36.3]} 17. b5 {[%clk 0:02:36]} 17... cxb5 {[%clk 0:02:34.8]} 18. Nxb5
{[%clk 0:02:36.9]} 18... Qd7 {[%clk 0:02:32.5]} 19. Qc7 {[%clk 0:02:33.5]} 19...
Rc8 {[%clk 0:02:24.6]} 20. Qxd7 {[%clk 0:02:31.7]} 20... Nxd7 {[%clk 0:02:24.6]}
21. Rfc1 {[%clk 0:02:31.7]} 21... Raa8 {[%clk 0:02:21.7]} 22. Nd6 {[%clk
0:02:29.6]} 22... Rd8 {[%clk 0:02:18.2]} 23. a4 {[%clk 0:02:28.2]} 23... Ne7
{[%clk 0:02:09.6]} 24. Rc7 {[%clk 0:02:22.7]} 24... Nf6 {[%clk 0:02:00.9]} 25.
Rxe7 {[%clk 0:02:02.4]} 25... Rxd6 {[%clk 0:01:59.2]} 26. Ne5 {[%clk 0:02:02.3]}
26... Ne4 {[%clk 0:01:56.2]} 27. Rc1 {[%clk 0:01:58.1]} 27... Rf6 {[%clk
0:01:51.3]} 28. f3 {[%clk 0:01:55.2]} 28... Nd6 {[%clk 0:01:47.3]} 29. Rc6
{[%clk 0:01:54.5]} 29... Nf5 {[%clk 0:01:44.9]} 30. Rxf6 {[%clk 0:01:44.6]}
30... gxf6 {[%clk 0:01:41.7]} 31. Rxf7 {[%clk 0:01:41.2]} 31... fxe5 {[%clk
0:01:27.8]} 32. Rxf5 {[%clk 0:01:40.8]} 32... exd4 {[%clk 0:01:28.4]} 33. exd4
{[%clk 0:01:40.7]} 33... Rc8 {[%clk 0:01:26.2]} 34. Rxd5 {[%clk 0:01:40]} 34...
Rc4 {[%clk 0:01:26.4]} 35. Rd6 {[%clk 0:01:39.7]} 35... Rxa4 {[%clk 0:01:25.6]}
36. Rxb6 {[%clk 0:01:39.9]} 36... Rxd4 {[%clk 0:01:25.6]} 37. Ra6 {[%clk
0:01:39.1]} 37... a4 {[%clk 0:01:24.8]} 38. Kf2 {[%clk 0:01:39.5]} 38... Rb4
{[%clk 0:01:24.3]} 39. Ke3 {[%clk 0:01:39.5]} 39... Rb3+ {[%clk 0:01:22.9]} 40.
Kf4 {[%clk 0:01:39.5]} 40... a3 {[%clk 0:01:22.8]} 41. g4 {[%clk 0:01:39.5]}
41... h5 {[%clk 0:01:20.2]} 42. Kg5 {[%clk 0:01:35.5]} 42... hxg4 {[%clk
0:01:18.9]} 43. Kxg4 {[%clk 0:01:33.3]} 43... Kg7 {[%clk 0:01:13.3]} 44. h4
{[%clk 0:01:32]} 44... Kf7 {[%clk 0:01:11.8]} 45. f4 {[%clk 0:01:31.1]} 45...
Kg7 {[%clk 0:01:11.3]} 46. Kf5 {[%clk 0:01:31]} 46... Rh3 {[%clk 0:01:07.3]} 47.
Ra7+ {[%clk 0:01:24.9]} 47... Kh6 {[%clk 0:01:05.3]} 48. Kg4 {[%clk 0:01:19.5]}
48... Rb3 {[%clk 0:01:01.7]} 49. Ra6+ {[%clk 0:01:18.8]} 49... Kg7 {[%clk
0:01:00.4]} 50. h5 {[%clk 0:01:18.3]} 50... Kh7 {[%clk 0:00:59.4]} 51. Kg5
{[%clk 0:01:18.1]} 51... Rg3+ {[%clk 0:00:58.9]} 52. Kf6 {[%clk 0:01:17.3]}
52... Kh6 {[%clk 0:00:55.8]} 53. Ra8 {[%clk 0:01:16.6]} 53... Kxh5 {[%clk
0:00:54.9]} 54. f5 {[%clk 0:01:12]} 54... Rf3 {[%clk 0:00:52.4]} 55. Ke6 {[%clk
0:01:09.4]} 55... Kg5 {[%clk 0:00:51.1]} 56. Rg8+ {[%clk 0:01:09]} 56... Kf4
{[%clk 0:00:45.4]} 57. f6 {[%clk 0:01:08.4]} 57... Re3+ {[%clk 0:00:44]} 58. Kd7
{[%clk 0:01:03.8]} 58... Ke5 {[%clk 0:00:38]} 59. f7 {[%clk 0:01:02.4]} 59... a2
{[%clk 0:00:29.5]} 60. Ra8 {[%clk 0:01:00.4]} 60... Rf3 {[%clk 0:00:24.9]} 61.
Ke7 {[%clk 0:00:59.6]} 61... Kd5 {[%clk 0:00:20.4]} 62. f8=Q {[%clk 0:00:58.5]}
62... Rxf8 {[%clk 0:00:18.8]} 63. Kxf8 {[%clk 0:00:59.4]} 63... Kc4 {[%clk
0:00:18.7]} 64. Rxa2 {[%clk 0:00:59.6]} 1-0

[Event "Early-Titled-Tuesday-Blitz-March-26-2024"]
[Site "Chess.com"]
[Date "2024.03.26"]
[Round "7"]
[White "Likvidator228"]
[Black "CSB7"]
[Result "0-1"]
[WhiteElo "2577"]
[BlackElo "2783"]
[TimeControl "180+1"]
[EndTime "9:15:32 PDT"]
[Termination "CSB7 won by checkmate"]

1. d4 {[%clk 0:03:00.9]} 1... Nf6 {[%clk 0:02:58.8]} 2. Nf3 {[%clk 0:03:00.3]}
2... e6 {[%clk 0:02:57.2]} 3. Bf4 {[%clk 0:03:00.8]} 3... d5 {[%clk 0:02:49.6]}
4. e3 {[%clk 0:03:00.9]} 4... Bd6 {[%clk 0:02:38.8]} 5. Bg3 {[%clk 0:03:00.9]}
5... O-O {[%clk 0:02:37]} 6. Nbd2 {[%clk 0:03:00.7]} 6... c5 {[%clk 0:02:35.3]}
7. c3 {[%clk 0:02:58.1]} 7... Qc7 {[%clk 0:02:33.7]} 8. Ne5 {[%clk 0:02:56.9]}
8... b6 {[%clk 0:02:30.3]} 9. Bd3 {[%clk 0:02:54.3]} 9... Bb7 {[%clk 0:02:14.3]}
10. O-O {[%clk 0:02:48.9]} 10... Nbd7 {[%clk 0:02:05.8]} 11. f4 {[%clk
0:02:48.7]} 11... c4 {[%clk 0:02:01.7]} 12. Bc2 {[%clk 0:02:48.4]} 12... b5
{[%clk 0:02:02.3]} 13. a3 {[%clk 0:02:37.3]} 13... a5 {[%clk 0:01:54.3]} 14. Bh4
{[%clk 0:02:35.2]} 14... Ne4 {[%clk 0:01:47]} 15. Nxe4 {[%clk 0:02:29.4]} 15...
dxe4 {[%clk 0:01:47.9]} 16. Nxd7 {[%clk 0:02:22.7]} 16... Qxd7 {[%clk
0:01:47.6]} 17. Qh5 {[%clk 0:01:39.7]} 17... f5 {[%clk 0:01:43.5]} 18. h3 {[%clk
0:01:34.1]} 18... b4 {[%clk 0:01:38.1]} 19. axb4 {[%clk 0:01:33.9]} 19... axb4
{[%clk 0:01:37.8]} 20. cxb4 {[%clk 0:01:24.6]} 20... Bxb4 {[%clk 0:01:32.9]} 21.
Qe2 {[%clk 0:01:21]} 21... Bd5 {[%clk 0:01:31.4]} 22. Rfc1 {[%clk 0:01:14.5]}
22... Qb7 {[%clk 0:01:22.7]} 23. g4 {[%clk 0:00:50.1]} 23... Rfb8 {[%clk
0:01:19.6]} 24. gxf5 {[%clk 0:00:50]} 24... exf5 {[%clk 0:01:19]} 25. Kh1 {[%clk
0:00:46]} 25... Bf8 {[%clk 0:01:09.8]} 26. Rxa8 {[%clk 0:00:43.5]} 26... Rxa8
{[%clk 0:01:10.7]} 27. Bb1 {[%clk 0:00:21.1]} 27... Rb8 {[%clk 0:00:59.3]} 28.
Rc2 {[%clk 0:00:18.2]} 28... Qb3 {[%clk 0:00:26.9]} 29. Be1 {[%clk 0:00:17.7]}
29... Qd3 {[%clk 0:00:18.6]} 30. Bc3 {[%clk 0:00:14.6]} 30... Qxe2 {[%clk
0:00:15.5]} 31. Rxe2 {[%clk 0:00:14.6]} 31... Bb4 {[%clk 0:00:15.4]} 32. Ba2
{[%clk 0:00:10.8]} 32... Bxc3 {[%clk 0:00:12.7]} 33. bxc3 {[%clk 0:00:11.7]}
33... Kf8 {[%clk 0:00:11.3]} 34. Kg2 {[%clk 0:00:11.9]} 34... Ra8 {[%clk
0:00:10.3]} 35. Kf2 {[%clk 0:00:10.5]} 35... Ra3 {[%clk 0:00:10.5]} 36. Rc2
{[%clk 0:00:11.1]} 36... Ke7 {[%clk 0:00:10.9]} 37. Ke2 {[%clk 0:00:11.3]} 37...
Kd6 {[%clk 0:00:10.3]} 38. Kd2 {[%clk 0:00:11.9]} 38... h6 {[%clk 0:00:10]} 39.
Rb2 {[%clk 0:00:12.5]} 39... g5 {[%clk 0:00:08.7]} 40. fxg5 {[%clk 0:00:12.8]}
40... hxg5 {[%clk 0:00:08.6]} 41. Kc2 {[%clk 0:00:12.3]} 41... f4 {[%clk
0:00:08.8]} 42. exf4 {[%clk 0:00:12.2]} 42... gxf4 {[%clk 0:00:09.7]} 43. Bb1
{[%clk 0:00:12.4]} 43... e3 {[%clk 0:00:08.9]} 44. Rb6+ {[%clk 0:00:11.7]} 44...
Kc7 {[%clk 0:00:09.1]} 45. Rf6 {[%clk 0:00:11.6]} 45... Be4+ {[%clk 0:00:08.7]}
46. Kb2 {[%clk 0:00:12.1]} 46... Rb3+ {[%clk 0:00:09.3]} 47. Kc1 {[%clk
0:00:12.3]} 47... Rxb1# {[%clk 0:00:09]} 0-1

[Event "Early-Titled-Tuesday-Blitz-March-26-2024"]
[Site "Chess.com"]
[Date "2024.03.26"]
[Round "7"]
[White "Nechitaylo_Nikita"]
[Black "HajiyevKanan"]
[Result "0-1"]
[WhiteElo "2373"]
[BlackElo "2535"]
[TimeControl "180+1"]
[EndTime "9:15:32 PDT"]
[Termination "HajiyevKanan won on time"]

1. d4 {[%clk 0:03:00.9]} 1... c6 {[%clk 0:03:00.9]} 2. c4 {[%clk 0:03:01.3]}
2... d5 {[%clk 0:03:01.8]} 3. cxd5 {[%clk 0:03:02.2]} 3... cxd5 {[%clk
0:03:01.8]} 4. Bf4 {[%clk 0:03:02.9]} 4... Nf6 {[%clk 0:03:02.1]} 5. e3 {[%clk
0:03:03.3]} 5... Nc6 {[%clk 0:03:02.4]} 6. Nc3 {[%clk 0:03:04.1]} 6... a6 {[%clk
0:03:03]} 7. Be2 {[%clk 0:03:03.8]} 7... Bf5 {[%clk 0:03:03.2]} 8. g4 {[%clk
0:03:04.4]} 8... Be4 {[%clk 0:02:59.1]} 9. f3 {[%clk 0:02:59.7]} 9... Bg6 {[%clk
0:02:58]} 10. h4 {[%clk 0:03:00.4]} 10... h6 {[%clk 0:02:55.3]} 11. h5 {[%clk
0:02:53.8]} 11... Bh7 {[%clk 0:02:55.2]} 12. Rc1 {[%clk 0:02:32.7]} 12... e6
{[%clk 0:02:55.2]} 13. Qb3 {[%clk 0:02:32.4]} 13... Na5 {[%clk 0:02:54.9]} 14.
Qa4+ {[%clk 0:02:29.4]} 14... Nc6 {[%clk 0:02:42.1]} 15. Qb3 {[%clk 0:02:27.2]}
15... Qd7 {[%clk 0:02:34]} 16. Na4 {[%clk 0:02:25.6]} 16... Bb4+ {[%clk
0:02:34.2]} 17. Kf2 {[%clk 0:02:23.4]} 17... Qe7 {[%clk 0:02:27.3]} 18. a3
{[%clk 0:01:37.7]} 18... Bd2 {[%clk 0:02:16]} 19. Rc5 {[%clk 0:01:00.8]} 19...
Nxd4 {[%clk 0:02:05]} 20. Qb6 {[%clk 0:00:17.7]} 20... Nxe2 {[%clk 0:01:21.8]}
21. Rc7 {[%clk 0:00:17.7]} 21... Nd7 {[%clk 0:01:15.9]} 22. Qxb7 {[%clk
0:00:17.6]} 22... Rb8 {[%clk 0:01:09.2]} 23. Qxb8+ {[%clk 0:00:10.8]} 23... Nxb8
{[%clk 0:01:08.9]} 24. Rxe7+ {[%clk 0:00:11.7]} 24... Kxe7 {[%clk 0:01:08.9]}
25. Kxe2 {[%clk 0:00:12.6]} 25... Ba5 {[%clk 0:00:53]} 26. b4 {[%clk 0:00:12.6]}
26... Bc2 {[%clk 0:00:43.7]} 27. Nc5 {[%clk 0:00:06.2]} 27... Bb6 {[%clk
0:00:43.7]} 28. Nh3 {[%clk 0:00:06.2]} 28... Rc8 {[%clk 0:00:29]} 29. Rc1 {[%clk
0:00:05.7]} 29... Bh7 {[%clk 0:00:18.4]} 30. Bxb8 {[%clk 0:00:02.1]} 30... Rxb8
{[%clk 0:00:16.5]} 31. Nxa6 {[%clk 0:00:02.9]} 31... Ra8 {[%clk 0:00:16.7]} 32.
Nc5 {[%clk 0:00:01.7]} 32... Rxa3 {[%clk 0:00:17]} 33. Nf4 {[%clk 0:00:01.5]}
33... Ra2+ {[%clk 0:00:12.8]} 34. Kf1 {[%clk 0:00:02.2]} 34... Kd6 {[%clk
0:00:07.6]} 35. e4 {[%clk 0:00:01.7]} 35... dxe4 {[%clk 0:00:05.6]} 36. fxe4
{[%clk 0:00:01.9]} 36... Bxc5 {[%clk 0:00:05]} 37. Rxc5 {[%clk 0:00:01.6]} 37...
Bxe4 {[%clk 0:00:04.3]} 38. Rb5 {[%clk 0:00:02]} 38... e5 {[%clk 0:00:02.5]} 39.
Nh3 {[%clk 0:00:01.2]} 39... Bd3+ {[%clk 0:00:03.1]} 0-1

[Event "Early-Titled-Tuesday-Blitz-March-26-2024"]
[Site "Chess.com"]
[Date "2024.03.26"]
[Round "7"]
[White "Juicy_Fork"]
[Black "Zhani-Z"]
[Result "1-0"]
[WhiteElo "2528"]
[BlackElo "2250"]
[TimeControl "180+1"]
[EndTime "9:15:35 PDT"]
[Termination "Juicy_Fork won on time"]

1. e4 {[%clk 0:02:56.7]} 1... e5 {[%clk 0:02:57.6]} 2. Nf3 {[%clk 0:02:56.4]}
2... Nc6 {[%clk 0:02:54.9]} 3. Bb5 {[%clk 0:02:55.7]} 3... a6 {[%clk 0:02:54.6]}
4. Ba4 {[%clk 0:02:55.3]} 4... Nf6 {[%clk 0:02:53.3]} 5. O-O {[%clk 0:02:55.3]}
5... Be7 {[%clk 0:02:53]} 6. Re1 {[%clk 0:02:55.2]} 6... b5 {[%clk 0:02:53.2]}
7. Bb3 {[%clk 0:02:55.5]} 7... d6 {[%clk 0:02:54.1]} 8. c3 {[%clk 0:02:55.5]}
8... O-O {[%clk 0:02:53.9]} 9. h3 {[%clk 0:02:56.1]} 9... Nb8 {[%clk 0:02:48.7]}
10. d4 {[%clk 0:02:56.2]} 10... Nbd7 {[%clk 0:02:49.2]} 11. Nbd2 {[%clk
0:02:56.9]} 11... Bb7 {[%clk 0:02:48.7]} 12. Bc2 {[%clk 0:02:57.6]} 12... Re8
{[%clk 0:02:48.8]} 13. Nf1 {[%clk 0:02:58.4]} 13... Bf8 {[%clk 0:02:49.1]} 14.
Ng3 {[%clk 0:02:59.2]} 14... g6 {[%clk 0:02:47.4]} 15. Bd2 {[%clk 0:02:59.9]}
15... c5 {[%clk 0:02:22.5]} 16. d5 {[%clk 0:02:57.6]} 16... c4 {[%clk
0:02:18.8]} 17. b4 {[%clk 0:02:56.4]} 17... cxb3 {[%clk 0:02:16.5]} 18. axb3
{[%clk 0:02:57.3]} 18... h6 {[%clk 0:01:59]} 19. Qc1 {[%clk 0:02:47.2]} 19...
Kh7 {[%clk 0:01:58.5]} 20. Nh4 {[%clk 0:02:46.2]} 20... Nxd5 {[%clk 0:01:48.6]}
21. Nxg6 {[%clk 0:02:19.1]} 21... fxg6 {[%clk 0:01:49]} 22. exd5 {[%clk
0:02:19.5]} 22... Bxd5 {[%clk 0:01:36.5]} 23. c4 {[%clk 0:02:11.4]} 23... Bf7
{[%clk 0:01:35.7]} 24. Be4 {[%clk 0:01:51.6]} 24... Nc5 {[%clk 0:01:35.8]} 25.
Bxa8 {[%clk 0:01:45.7]} 25... Qxa8 {[%clk 0:01:29.1]} 26. Qc2 {[%clk 0:01:41.7]}
26... bxc4 {[%clk 0:01:03.7]} 27. bxc4 {[%clk 0:01:42.6]} 27... Qc6 {[%clk
0:00:54]} 28. Bb4 {[%clk 0:01:34.4]} 28... Rc8 {[%clk 0:00:40.7]} 29. Bxc5
{[%clk 0:01:09.9]} 29... Qxc5 {[%clk 0:00:40.8]} 30. Rxa6 {[%clk 0:01:09.6]}
30... Bxc4 {[%clk 0:00:40.8]} 31. Ne4 {[%clk 0:00:59.9]} 31... Qc7 {[%clk
0:00:33.5]} 32. Raa1 {[%clk 0:00:42.2]} 32... d5 {[%clk 0:00:27.6]} 33. Nf6+
{[%clk 0:00:37.1]} 33... Kg7 {[%clk 0:00:27.3]} 34. Ng4 {[%clk 0:00:37.6]} 34...
Bd6 {[%clk 0:00:18.2]} 35. f4 {[%clk 0:00:32.8]} 35... Qc5+ {[%clk 0:00:11]} 36.
Kh1 {[%clk 0:00:32.7]} 36... e4 {[%clk 0:00:08.7]} 37. Qb2+ {[%clk 0:00:18.4]}
37... d4 {[%clk 0:00:08.7]} 38. Rxe4 {[%clk 0:00:18.7]} 38... Bd3 {[%clk
0:00:08.7]} 39. Rxd4 {[%clk 0:00:16.1]} 39... Kh7 {[%clk 0:00:01.9]} 40. Rxd3
{[%clk 0:00:14.4]} 40... h5 {[%clk 0:00:01.3]} 41. Nf6+ {[%clk 0:00:14.5]} 41...
Kh6 {[%clk 0:00:01.2]} 42. Ne4 {[%clk 0:00:15.3]} 1-0